{"text_format":"1","workbook":"xlsx","n_sheets":1,"sheets":["Plan1"],"not_rendered":{"charts":0,"images":0,"macros":1,"external_links":0,"defined_names":1,"comments":0,"pivot_tables":0},"unopened":[],"bounds":{"document_bytes":16777216,"sheet_cells":100000,"rows_first":2000,"rows_last":500,"rows_between":2000,"halvings":0,"cell_chars":16384,"cell_head_chars":4096},"cells_cut":0,"cells_raw":0,"read":"whole","date_system":"1900"}

{"sheet":"Plan1","index":0,"n_rows":22,"n_cols":18,"rows_kept":22,"cut":false,"hidden":false,"merged":[[9,12,9,13],[1,1,1,10],[5,6,5,9],[6,6,6,10],[3,1,3,10],[8,1,8,3],[8,6,8,9],[0,1,0,4],[0,5,0,7],[10,1,10,3],[10,6,10,9],[5,1,5,3],[6,1,6,3],[7,1,7,3],[21,1,24,10],[11,1,11,6],[13,2,13,9],[12,2,12,8],[17,7,17,10],[16,1,16,10],[14,1,14,10],[15,1,15,3]]}
[null,"Seguro Desemprego",null,null,null,"Ao entrar sempre ativar macros"]
[null,"PLANILHA DE CÁLCULO DAS PARCELAS DO SEGURO DESEMPREGO"]
[]
[null,"Informe dos dados abaixo para calcular o seu seguro desemprego"]
[null,null,null,null,null,null,null,null,null,null,null,null,null,null,null,0]
[null,"ANTEPENÚLTIMO SALÁRIO",null,null,200,null,"Meses trabalhados no últimos 36 meses",null,null,null,24,null,null,null,{"$f":"VLOOKUP(K6,P6:Q9,2)","v":5},0,0]
[null,"PENÚLTIMO SALÁRIO",null,null,200," ","Recebeu Seguro Desemprego nos útimos 16 meses",null,null,null,null,null,null,null,null,6,3]
[null,"ÚLTIMO SALÁRIO",null,null,200,null,null,null,null,null,null,null,1,null,null,12,4]
[null,"SOMA",null,null,{"$f":"SUM(E6:E8)","v":600},null,"Média de salários nos últimos 03 meses",null,null,null,{"$f":"(E6+E7+E8)/3","v":200},null,null,{"$f":"SUM(N6:N8)","v":0},null,24,5]
[null,null,null,null,null,null,null,null,null,null,null,null,{"$f":"IF(M8=1,O6)","v":5}]
[null,"Valor a receber de cada parcela",null,null,{"$f":"IF(M8=2,\"Sem Direito\",IF(M8=1,Q11))","v":724},null,"Número de parcelas a receber",null,null,null,{"$f":"IF($E$9=0,0,IF($E$9>0,O6))","v":5},null,null,null,{"$f":"IF(N9=3,L11,IF(N9<>3,0))","v":0},null,{"$f":"IF(K11=0,0,IF(K11>0,R11))","v":724},{"$f":"IF($G$18+$G$19-$G$20>$E$18,$G$18+$G$19-$G$20,IF($G$18+$G$19-$G$20<$E$18,$E$18))","v":724}]
[null,{"$f":"IF(K9<E11,\"valor de cada parcela não pode ser inferior ao salário-mínimo\",IF(K9>=E11,0))","v":"valor de cada parcela não pode ser inferior ao salário-mínimo"}]
[null,null,{"$f":"IF(M8=2,\"VOCÊ NÃO TEM DIREITO AO SEGURO DESEMPREGO\",IF(M8=1,0,IF(K6<6,\"VOCÊ NÃO TEM DIREITO AO SEGURO DESEMPREGO\")))","v":0}]
[null,null,{"$f":"IF(K6=0,\"Preencha a quantidade de meses da célula k6\",IF(K6<6,\"Você não tem a quantidade de meses necessários, para o benefício  (mínimo 6 meses) \",IF(O6>0,0)))","v":0}]
[null,"Não tem direito ao seguro desemprego :- Estagiários - Empregados Domésticos, Autônomos, Empresários e os Servidores"]
[null,"Públicos, civis e militares.",null,null,"Obs:- Doméstico com depósito do FGTS tem direito ao seguro desemprego"]
[null,"SEGURO DESEMPREGO - JANEIRO/2014 - V06- 11/01/2014 -angelo.tonon@ig.com.br "]
[null,"SALÁRIO MÍNIMO (FEDERAL)",null,null,724,null,{"$f":"IF($K$9>=$I$19,$K$19,IF($K$9<$I$19,$K$9*$J$19,))","v":160},"TABELA DO GOVERNO A PARTIR 01/2014"]
[null,null,null,null,null,null,{"$f":"IF(K9>H20,K9-I19)*J20","v":0},"até",1151.06,0.8,{"$f":"I19*J19","v":920.85}]
[null,null,null,null,null,null,{"$f":"IF(G19>K20,G19-K20,IF(G19<K20,G19-G19))","v":0},{"$f":"I19+0.01","v":1151.07},1918.62,0.5,{"$f":"(I20-H20)*J20","v":383.78}]
[null,"Valores validos a partir de 11/01/2014",null,null,null,null,{"$f":"G18+G19-G20","v":160},"TETO MÁXIMO DE CADA PARCELA",null,null,{"$f":"SUM(K19:K20)","v":1304.6300000000001}]
[null,"O seguro é pago com base na média dos três últimos salários recebidos. Já a quantidade de parcelas, de três a cinco,  é calculada com base no período em que o trabalhador teve vínculo empregatício nos 36 meses anteriores ao requerimento. O trabalhador que comprovar vínculo empregatício entre 6 e 11 meses, terá direito a três parcelas. Se o período for de 12 a 23 meses, quatro parcelas, e o trabalhador que comprovar vínculo empregatício de 24 meses terá direito a cinco parcelas."]